bitfinex/quotes_BTCUSD_20250908
["timestamp","ask_amount","ask_price","bid_price","bid_amount"]
[1757318801310,1.21046556,111460.0,111450.0,0.00104]
[1757318803215,1.22982827,111460.0,111450.0,0.00104]
[1757318804419,1.32174426,111460.0,111450.0,0.00104]
[1757318804617,1.32174426,111460.0,111450.0,4e-05]
[1757318805901,1.32274426,111460.0,111450.0,4e-05]
[1757318806048,1.36118532,111460.0,111450.0,4e-05]
[1757318806467,1.51214532,111460.0,111450.0,4e-05]
[1757318806669,1.51114532,111460.0,111450.0,4e-05]
[1757318807533,1.51214532,111460.0,111450.0,4e-05]
[1757318808590,1.51514532,111460.0,111450.0,4e-05]
[1757318811640,1.61420517,111460.0,111450.0,4e-05]
[1757318811840,1.63838434,111460.0,111450.0,4e-05]
[1757318812247,1.63834434,111460.0,111450.0,4e-05]
[1757318813658,1.48842434,111460.0,111450.0,4e-05]
[1757318813803,1.63834434,111460.0,111450.0,4e-05]
[1757318816457,2.89342946,111460.0,111450.0,4e-05]
[1757318817494,2.74350946,111460.0,111450.0,4e-05]
[1757318817637,2.98790946,111460.0,111450.0,4e-05]
[1757318818257,2.98690946,111460.0,111450.0,4e-05]
[1757318818464,2.98390946,111460.0,111450.0,4e-05]
[1757318818978,2.98990946,111460.0,111450.0,4e-05]
[1757318819573,2.99290946,111460.0,111450.0,4e-05]
[1757318820544,2.81490843,111460.0,111450.0,4e-05]
[1757318820754,2.96482843,111460.0,111450.0,4e-05]
[1757318820962,2.87030843,111460.0,111450.0,4e-05]
[1757318823199,2.90266253,111460.0,111450.0,4e-05]
[1757318824260,3.34076253,111460.0,111450.0,4e-05]
[1757318828083,3.31658336,111460.0,111450.0,4e-05]
[1757318830350,3.36511451,111460.0,111450.0,4e-05]
[1757318831344,3.37351284,111460.0,111450.0,4e-05]
[1757318831548,3.5515305,111460.0,111450.0,4e-05]
[1757318831745,0.17950098,111420.0,111410.0,0.07061212]
[1757318831950,0.64802861,111420.0,111410.0,0.07069579]
[1757318832149,1.27520387,111420.0,111410.0,0.07069579]
[1757318832332,1.302171,111420.0,111410.0,0.07069579]
[1757318832735,1.302171,111420.0,111410.0,8.367e-05]
[1757318839849,1.303171,111420.0,111410.0,8.367e-05]
[1757318840258,1.32353125,111420.0,111410.0,8.367e-05]
[1757318840694,0.38276836,111420.0,111410.0,8.367e-05]
[1757318840943,1.304171,111420.0,111410.0,8.367e-05]
[1757318841152,1.32253125,111420.0,111410.0,8.367e-05]
[1757318841563,1.32353125,111420.0,111410.0,8.367e-05]
[1757318841983,1.32353581,111420.0,111410.0,8.367e-05]
[1757318846706,1.00994818,111420.0,111410.0,8.367e-05]
[1757318847930,0.86002818,111420.0,111410.0,8.367e-05]
[1757318848148,1.00994818,111420.0,111410.0,8.367e-05]
[1757318849937,0.86002818,111420.0,111410.0,8.367e-05]
[1757318850139,1.00994818,111420.0,111410.0,8.367e-05]
[1757318854207,0.99058337,111420.0,111410.0,8.367e-05]
[1757318855927,0.84066337,111420.0,111410.0,8.367e-05]
[1757318856163,0.99058337,111420.0,111410.0,8.367e-05]
[1757318858390,0.84066337,111420.0,111410.0,8.367e-05]
[1757318858597,0.99058337,111420.0,111410.0,8.367e-05]
[1757318861179,1.00997584,111420.0,111410.0,8.367e-05]
[1757318869965,1.00997583,111420.0,111410.0,8.367e-05]
[1757318870376,1.34997583,111420.0,111410.0,8.367e-05]
[1757318870572,1.75547945,111420.0,111410.0,8.367e-05]
[1757318870789,0.51951709,111410.0,111400.0,4e-05]
[1757318870988,1.45702137,111410.0,111400.0,4e-05]
[1757318871190,1.4380308,111410.0,111400.0,4e-05]
[1757318871630,1.46500382,111410.0,111400.0,4e-05]
[1757318871813,1.48924439,111410.0,111400.0,4e-05]
[1757318872382,1.46497653,111410.0,111400.0,4e-05]
[1757318873645,1.46797653,111410.0,111400.0,4e-05]
[1757318873853,1.46997653,111410.0,111400.0,4e-05]
[1757318874458,1.47001653,111410.0,111400.0,4e-05]
[1757318878140,1.45065136,111410.0,111400.0,4e-05]
[1757318878513,1.1372585,111410.0,111400.0,4e-05]
[1757318880730,1.15658414,111410.0,111400.0,4e-05]
[1757318881379,1.49130536,111410.0,111400.0,4e-05]
[1757318886925,1.49129069,111410.0,111400.0,4e-05]
[1757318887239,1.34137069,111410.0,111400.0,4e-05]
[1757318887450,1.17750829,111410.0,111400.0,4e-05]
[1757318887652,1.49129069,111410.0,111400.0,4e-05]
[1757318888189,1.17750829,111410.0,111400.0,4e-05]
[1757318888400,1.15260829,111410.0,111400.0,4e-05]
[1757318889315,1.00268829,111410.0,111400.0,4e-05]
[1757318889565,0.3034061,111410.0,111400.0,4e-05]
[1757318889792,0.36141011,111410.0,111400.0,4e-05]
[1757318890003,1.01519251,111410.0,111400.0,4e-05]
[1757318890442,1.01319251,111410.0,111400.0,4e-05]
[1757318890659,1.01019251,111410.0,111400.0,4e-05]
[1757318890870,1.01419251,111410.0,111400.0,4e-05]
[1757318891076,1.01219251,111410.0,111400.0,4e-05]
[1757318891278,1.01019251,111410.0,111400.0,4e-05]
[1757318891487,1.01119251,111410.0,111400.0,4e-05]
[1757318891700,1.01219251,111410.0,111400.0,4e-05]
[1757318893360,1.01537251,111410.0,111400.0,4e-05]
[1757318895792,1.01744251,111410.0,111400.0,4e-05]
[1757318897271,1.01537251,111410.0,111400.0,4e-05]
[1757318898326,1.01744251,111410.0,111400.0,4e-05]
[1757318899156,1.20127449,111410.0,111400.0,4e-05]
[1757318899361,1.24154778,111410.0,111400.0,4e-05]
[1757318899559,1.46341419,111410.0,111400.0,4e-05]
[1757318899763,1.48831419,111410.0,111400.0,4e-05]
[1757318899980,1.17453179,111410.0,111400.0,4e-05]
[1757318900395,1.48831419,111410.0,111400.0,4e-05]
[1757318900610,1.51643522,111410.0,111400.0,4e-05]
[1757318900832,1.59057394,111410.0,111400.0,4e-05]
[1757318901709,1.58957394,111410.0,111400.0,4e-05]
[1757318902860,1.58857394,111410.0,111400.0,4e-05]
[1757318903301,1.59057394,111410.0,111400.0,4e-05]
[1757318903505,1.59257394,111410.0,111400.0,4e-05]
[1757318904112,1.56445291,111410.0,111400.0,4e-05]
[1757318907337,2.00255291,111410.0,111400.0,4e-05]
[1757318908111,1.95255291,111410.0,111400.0,4e-05]
[1757318908347,2.00255291,111410.0,111400.0,4e-05]
[1757318911342,2.0944689,111410.0,111400.0,4e-05]
[1757318912049,2.1889689,111410.0,111400.0,4e-05]
[1757318912926,2.09705291,111410.0,111400.0,4e-05]
[1757318918540,2.07211291,111410.0,111400.0,4e-05]
[1757318920596,2.10023394,111410.0,111400.0,4e-05]
[1757318920812,2.12336394,111410.0,111400.0,4e-05]
[1757318923451,2.13244334,111410.0,111400.0,4e-05]
[1757318926218,1.98256334,111410.0,111400.0,4e-05]
[1757318926443,2.10432231,111410.0,111400.0,4e-05]
[1757318927134,1.95444231,111410.0,111400.0,4e-05]
[1757318927375,1.37696751,111410.0,111400.0,4e-05]
[1757318927591,1.69074991,111410.0,111400.0,4e-05]
[1757318927978,1.65854051,111410.0,111400.0,4e-05]
[1757318928403,1.66157051,111410.0,111400.0,4e-05]
[1757318928841,1.65854051,111410.0,111400.0,4e-05]
[1757318929349,1.69074991,111410.0,111400.0,4e-05]
[1757318930512,1.69367991,111410.0,111400.0,4e-05]
[1757318931110,1.69568991,111410.0,111400.0,4e-05]
[1757318931948,1.69579803,111410.0,111400.0,4e-05]
[1757318932367,1.64579803,111410.0,111400.0,4e-05]
[1757318932600,1.69579803,111410.0,111400.0,4e-05]
[1757318933824,1.69085803,111410.0,111400.0,4e-05]
[1757318934678,1.69378803,111410.0,111400.0,4e-05]
[1757318934994,1.69579803,111410.0,111400.0,4e-05]
[1757318937441,1.66358863,111410.0,111400.0,4e-05]
[1757318938529,1.97737991,111410.0,111400.0,4e-05]
[1757318941040,1.82753991,111410.0,111400.0,4e-05]
[1757318941168,1.97737991,111410.0,111400.0,4e-05]
[1757318941370,1.92737991,111410.0,111400.0,4e-05]
[1757318941681,1.97737991,111410.0,111400.0,4e-05]
[1757318943354,1.34980623,111410.0,111400.0,4e-05]
[1757318943574,1.97737991,111410.0,111400.0,4e-05]
[1757318948142,1.97243991,111410.0,111400.0,4e-05]
[1757318948337,2.04143991,111410.0,111400.0,4e-05]
[1757318949018,1.21402623,111410.0,111400.0,4e-05]
[1757318949235,0.54057557,111410.0,111400.0,4e-05]
[1757318949439,0.85436241,111410.0,111400.0,4e-05]
[1757318949652,1.19436241,111410.0,111400.0,4e-05]
[1757318950276,1.19729241,111410.0,111400.0,4e-05]
[1757318950684,1.51107925,111410.0,111400.0,4e-05]
[1757318951126,1.51308925,111410.0,111400.0,4e-05]
[1757318955632,0.88551557,111410.0,111400.0,4e-05]
[1757318955852,1.51308925,111410.0,111400.0,4e-05]
[1757318957411,1.19930241,111410.0,111400.0,4e-05]
[1757318960549,0.88350557,111410.0,111400.0,4e-05]
[1757318960772,1.19729241,111410.0,111400.0,4e-05]
[1757318962335,1.19927241,111410.0,111400.0,4e-05]
[1757318964389,1.51305925,111410.0,111400.0,4e-05]
[1757318964541,1.19927241,111410.0,111400.0,4e-05]
[1757318964953,0.88548557,111410.0,111400.0,4e-05]
[1757318965212,1.19927241,111410.0,111400.0,4e-05]
[1757318966361,1.53399807,111410.0,111400.0,4e-05]
[1757318972653,1.07041123,111410.0,111400.0,4e-05]
[1757318972908,1.21526123,111410.0,111400.0,4e-05]
[1757318974402,1.21821123,111410.0,111400.0,4e-05]
[1757318974608,1.04456241,111410.0,111400.0,4e-05]
[1757318974814,1.19432241,111410.0,111400.0,4e-05]
[1757318977359,1.19925241,111410.0,111400.0,4e-05]
[1757318977795,1.19727241,111410.0,111400.0,4e-05]
[1757318978162,1.19925241,111410.0,111400.0,4e-05]
[1757318980370,1.19727241,111410.0,111400.0,4e-05]
[1757318980573,0.88546557,111410.0,111400.0,4e-05]
[1757318980788,1.19925241,111410.0,111400.0,4e-05]
[1757318981620,0.88546557,111410.0,111400.0,4e-05]
[1757318981801,1.19925241,111410.0,111400.0,4e-05]
[1757318982158,1.17988294,111410.0,111400.0,4e-05]
[1757318982365,1.19925792,111410.0,111400.0,4e-05]
[1757318989306,1.51304476,111410.0,111400.0,4e-05]
[1757318989515,1.53398358,111410.0,111400.0,4e-05]
[1757318989713,1.55820231,111410.0,111400.0,4e-05]
[1757318993717,0.95874966,111410.0,111400.0,4e-05]
[1757318993893,1.98758428,111410.0,111400.0,4e-05]
[1757318995107,1.66749401,111410.0,111400.0,4e-05]
[1757318995291,1.69168804,111410.0,111400.0,4e-05]
[1757318995491,1.67379409,111410.0,111400.0,4e-05]
[1757318996170,1.98128085,111410.0,111400.0,4e-05]
[1757318997111,1.66749401,111410.0,111400.0,4e-05]
[1757318997320,1.69167718,111410.0,111400.0,4e-05]
[1757318997722,1.67379165,111410.0,111400.0,4e-05]
[1757318998319,1.6916734,111410.0,111400.0,4e-05]
[1757318998908,2.00546024,111410.0,111400.0,4e-05]
[1757318999335,2.02889319,111410.0,111400.0,4e-05]
[1757319000336,1.40135897,111410.0,111400.0,4e-05]
[1757319002653,1.3834738,111410.0,111400.0,4e-05]
[1757319002855,1.6973001,111410.0,111400.0,4e-05]
[1757319003456,1.69100588,111410.0,111400.0,4e-05]
[1757319004092,1.35399958,111410.0,111400.0,4e-05]
[1757319004273,1.37816467,111410.0,111400.0,4e-05]
[1757319005277,1.35004364,111410.0,111400.0,4e-05]
[1757319005685,1.35000364,111410.0,111400.0,4e-05]
[1757319007244,1.44450364,111410.0,111400.0,4e-05]
[1757319007472,1.35000364,111410.0,111400.0,4e-05]
[1757319007661,1.30000364,111410.0,111400.0,4e-05]
[1757319017314,1.27583855,111410.0,111400.0,4e-05]
[1757319017568,1.29994266,111410.0,111400.0,4e-05]
[1757319018133,1.28207885,111410.0,111400.0,4e-05]
[1757319018983,1.31019988,111410.0,111400.0,4e-05]
[1757319019158,1.67402618,111410.0,111400.0,4e-05]
[1757319019360,1.73072999,111410.0,111400.0,4e-05]
[1757319019990,2.16682999,111410.0,111400.0,4e-05]
[1757319020199,2.13462059,111410.0,111400.0,4e-05]
[1757319020402,2.13562059,111410.0,111400.0,4e-05]
[1757319020644,2.13862059,111410.0,111400.0,4e-05]
[1757319020879,2.13562059,111410.0,111400.0,4e-05]
[1757319021089,2.13262059,111410.0,111400.0,4e-05]
[1757319021306,1.98890059,111410.0,111400.0,4e-05]
[1757319021529,2.17084579,111410.0,111400.0,4e-05]
[1757319022393,2.13862059,111410.0,111400.0,4e-05]
[1757319024200,1.96077956,111410.0,111400.0,4e-05]
[1757319024422,2.11049956,111410.0,111400.0,4e-05]
[1757319025409,2.11050576,111410.0,111400.0,4e-05]
[1757319026119,1.96078576,111410.0,111400.0,4e-05]
[1757319026340,2.11050576,111410.0,111400.0,4e-05]
[1757319027380,2.20500576,111410.0,111400.0,4e-05]
[1757319027596,2.11050576,111410.0,111400.0,4e-05]
[1757319030170,2.20242175,111410.0,111400.0,4e-05]
[1757319030730,2.11050576,111410.0,111400.0,4e-05]
[1757319036657,2.11050576,111410.0,111400.0,4e-05]
[1757319047477,2.11050624,111410.0,111400.0,4e-05]
[1757319050654,2.13862414,111410.0,111400.0,4e-05]
[1757319057607,2.11050624,111410.0,111400.0,4e-05]
[1757319057976,2.1105015,111410.0,111400.0,4e-05]
[1757319058488,1.95239128,111410.0,111400.0,4e-05]
[1757319058632,2.11046148,111410.0,111400.0,4e-05]
[1757319060337,1.96078148,111410.0,111400.0,4e-05]
[1757319060563,1.13298636,111410.0,111400.0,4e-05]
[1757319060774,1.25818178,111410.0,111400.0,4e-05]
[1757319060993,1.29699334,111410.0,111400.0,4e-05]
[1757319061625,0.98316704,111410.0,111400.0,4e-05]
[1757319061846,1.29699334,111410.0,111400.0,4e-05]
[1757319062516,1.61068076,111410.0,111400.0,4e-05]
[1757319063267,1.57846104,111410.0,111400.0,4e-05]
[1757319064093,1.58355104,111410.0,111400.0,4e-05]
[1757319064298,1.92952762,111410.0,111400.0,4e-05]
[1757319067116,1.61064076,111410.0,111400.0,4e-05]
[1757319067627,1.61366076,111410.0,111400.0,4e-05]
[1757319067809,1.61573076,111410.0,111400.0,4e-05]
[1757319072455,1.92948762,111410.0,111400.0,4e-05]
[1757319072659,1.96160637,111410.0,111400.0,4e-05]
[1757319072871,2.01829923,111410.0,111400.0,4e-05]
[1757319075299,2.04641713,111410.0,111400.0,4e-05]
[1757319077809,2.01829923,111410.0,111400.0,4e-05]
[1757319079163,2.02974587,111410.0,111400.0,4e-05]
[1757319080307,2.01829923,111410.0,111400.0,4e-05]
[1757319090584,2.01829989,111410.0,111400.0,4e-05]
[1757319092746,2.11290067,111410.0,111400.0,4e-05]
[1757319092955,2.01830067,111410.0,111400.0,4e-05]
[1757319096326,1.86866067,111410.0,111400.0,4e-05]
[1757319096570,1.47887499,111410.0,111400.0,4e-05]
[1757319096753,0.62215927,111410.0,111400.0,4e-05]
[1757319096966,0.56580309,111410.0,111400.0,4e-05]
[1757319097171,1.53331681,111410.0,111400.0,4e-05]
[1757319097377,1.50988386,111410.0,111400.0,4e-05]
[1757319097612,0.706487,111410.0,111400.0,4e-05]
[1757319097814,0.76417101,111410.0,111400.0,4e-05]
[1757319098028,0.74484697,111410.0,111400.0,4e-05]
[1757319098418,1.08484697,111410.0,111400.0,4e-05]
[1757319104975,0.77109011,111410.0,111400.0,4e-05]
[1757319105193,1.08484697,111410.0,111400.0,4e-05]
[1757319106280,0.77109011,111410.0,111400.0,4e-05]
[1757319106554,1.08484697,111410.0,111400.0,4e-05]
[1757319106790,1.39860383,111410.0,111400.0,4e-05]
[1757319111735,0.77109011,111410.0,111400.0,4e-05]
[1757319111943,1.39860383,111410.0,111400.0,4e-05]
[1757319115209,1.39925461,111410.0,111400.0,4e-05]
[1757319115605,0.77174089,111410.0,111400.0,4e-05]
[1757319115807,1.08549775,111410.0,111400.0,4e-05]
[1757319116988,1.39925461,111410.0,111400.0,4e-05]
[1757319117199,1.80800746,111410.0,111400.0,4e-05]
[1757319117405,1.81009746,111410.0,111400.0,4e-05]
[1757319117789,1.80709746,111410.0,111400.0,4e-05]
[1757319118388,1.80909746,111410.0,111400.0,4e-05]
[1757319119844,1.80709746,111410.0,111400.0,4e-05]
[1757319120043,1.80809746,111410.0,111400.0,4e-05]
[1757319120805,1.80600746,111410.0,111400.0,4e-05]
[1757319121580,1.80292746,111410.0,111400.0,4e-05]
[1757319122175,1.4891706,111410.0,111400.0,4e-05]
[1757319122376,1.17542474,111410.0,111400.0,4e-05]
[1757319122583,1.17850474,111410.0,111400.0,4e-05]
[1757319123387,1.17550474,111410.0,111400.0,4e-05]
[1757319124500,1.17650474,111410.0,111400.0,4e-05]
[1757319126198,1.19580259,111410.0,111400.0,4e-05]
[1757319136248,1.17650474,111410.0,111400.0,4e-05]
[1757319137380,1.02690474,111410.0,111400.0,4e-05]
[1757319137582,1.17342474,111410.0,111400.0,4e-05]
[1757319140066,1.17650474,111410.0,111400.0,4e-05]
[1757319141236,1.19580626,111410.0,111400.0,4e-05]
[1757319141812,1.17650474,111410.0,111400.0,4e-05]
[1757319142285,1.19580742,111410.0,111400.0,4e-05]
[1757319144707,1.19272742,111410.0,111400.0,4e-05]
[1757319145383,1.19595742,111410.0,111400.0,4e-05]
[1757319146738,1.19272742,111410.0,111400.0,4e-05]
[1757319148371,0.87895956,111410.0,111400.0,4e-05]
[1757319148596,1.17342474,111410.0,111400.0,4e-05]
[1757319149715,1.17866474,111410.0,111400.0,4e-05]
[1757319150162,1.17665474,111410.0,111400.0,4e-05]
[1757319150961,1.17866474,111410.0,111400.0,4e-05]
[1757319151367,1.17342474,111410.0,111400.0,4e-05]
[1757319152760,1.17665474,111410.0,111400.0,4e-05]
[1757319153467,1.17342474,111410.0,111400.0,4e-05]
[1757319153979,1.17665474,111410.0,111400.0,4e-05]
[1757319154747,1.02382474,111410.0,111400.0,4e-05]
[1757319154953,0.18216787,111410.0,111400.0,0.17957321]
[1757319155185,0.33172787,111410.0,111400.0,4e-05]
[1757319155369,0.33172787,111410.0,111400.0,0.17957321]
[1757319155985,0.33072787,111410.0,111400.0,0.17957321]
[1757319156179,0.32972787,111410.0,111400.0,4e-05]
[1757319156455,0.32972787,111410.0,111400.0,0.00304]
[1757319156914,0.64349573,111410.0,111400.0,0.00304]
[1757319157311,0.32972787,111410.0,111400.0,0.00304]
[1757319158868,0.64349573,111410.0,111400.0,0.00304]
[1757319170440,0.32972787,111410.0,111400.0,0.00304]
[1757319170647,0.64349573,111410.0,111400.0,0.00304]
[1757319179595,0.64861573,111410.0,111400.0,0.00304]
[1757319180009,1.10147054,111410.0,111400.0,0.00304]
[1757319180241,1.12844276,111410.0,111400.0,0.00304]
[1757319180692,1.12844276,111410.0,111400.0,4e-05]
[1757319184465,1.44218738,111410.0,111400.0,4e-05]
[1757319188221,1.77523731,111410.0,111400.0,4e-05]
[1757319188447,1.77523176,111410.0,111400.0,4e-05]
[1757319188892,1.79819176,111410.0,111400.0,4e-05]
[1757319189326,2.13962654,111410.0,111400.0,4e-05]
[1757319189511,1.84998251,111410.0,111400.0,4e-05]
[1757319189940,1.85098251,111410.0,111400.0,4e-05]
[1757319190398,1.84998251,111410.0,111400.0,4e-05]
[1757319190821,1.85098251,111410.0,111400.0,4e-05]
[1757319191235,1.8278703,111410.0,111400.0,4e-05]
[1757319191758,1.8268703,111410.0,111400.0,4e-05]
[1757319191979,1.85098251,111410.0,111400.0,4e-05]
[1757319192402,1.8278703,111410.0,111400.0,4e-05]
[1757319193037,1.80019176,111410.0,111400.0,4e-05]
[1757319202227,1.82430397,111410.0,111400.0,4e-05]
[1757319208370,1.85645361,111410.0,111400.0,4e-05]
[1757319210586,1.83551479,111410.0,111400.0,4e-05]
[1757319210954,1.85645361,111410.0,111400.0,4e-05]
[1757319211369,1.8323414,111410.0,111400.0,4e-05]
[1757319213730,1.8093814,111410.0,111400.0,4e-05]
[1757319213889,1.85760586,111410.0,111400.0,4e-05]
[1757319214102,1.83666704,111410.0,111400.0,4e-05]
[1757319214476,1.85760586,111410.0,111400.0,4e-05]
[1757319214698,1.70804586,111410.0,111400.0,4e-05]
[1757319214911,0.91633714,111410.0,111400.0,4e-05]
[1757319215123,1.85760586,111410.0,111400.0,4e-05]
[1757319215337,1.86388547,111410.0,111400.0,4e-05]
[1757319215545,1.88732739,111410.0,111400.0,4e-05]
[1757319216307,1.85517775,111410.0,111400.0,4e-05]
[1757319216707,1.88734339,111410.0,111400.0,4e-05]
[1757319217371,1.85517775,111410.0,111400.0,4e-05]
[1757319218236,1.863564,111410.0,111400.0,4e-05]
[1757319231241,1.74421861,111410.0,111400.0,4e-05]
[1757319231463,0.50211883,111410.0,111400.0,4e-05]
[1757319231680,1.12158041,111410.0,111400.0,4e-05]
[1757319231898,1.11835552,111410.0,111400.0,4e-05]
[1757319232097,1.45835552,111410.0,111400.0,4e-05]
[1757319232317,1.77726176,111410.0,111400.0,4e-05]
[1757319232544,1.80142547,111410.0,111400.0,4e-05]
[1757319235306,1.77726176,111410.0,111400.0,4e-05]
[1757319236310,1.82910401,111410.0,111400.0,4e-05]
[1757319236494,1.89810401,111410.0,111400.0,4e-05]
[1757319237120,1.89610401,111410.0,111400.0,4e-05]
[1757319237354,1.89810401,111410.0,111400.0,4e-05]
[1757319237577,1.89610401,111410.0,111400.0,4e-05]
[1757319237980,1.89810401,111410.0,111400.0,4e-05]
[1757319239478,1.87142547,111410.0,111400.0,4e-05]
[1757319240317,1.87042547,111410.0,111400.0,4e-05]
[1757319240557,1.72086547,111410.0,111400.0,4e-05]
[1757319240739,1.87042547,111410.0,111400.0,4e-05]
[1757319241413,1.87142547,111410.0,111400.0,4e-05]
[1757319244628,1.55784755,111410.0,111400.0,4e-05]
[1757319245653,1.56691597,111410.0,111400.0,4e-05]
[1757319253020,1.55784755,111410.0,111400.0,4e-05]
[1757319261099,0.17956545,111380.0,111370.0,0.06788783]
[1757319261283,0.64297085,111380.0,111370.0,0.06788783]
[1757319262020,0.66994899,111380.0,111370.0,0.06788783]
[1757319262225,0.17959337,111370.0,111350.0,0.18863398]
[1757319262424,0.64299877,111370.0,111350.0,0.18871727]
[1757319262599,0.64299877,111370.0,111350.0,0.21358727]
[1757319263469,0.49343877,111370.0,111350.0,0.21358727]
[1757319263595,0.64299877,111370.0,111360.0,0.1795977]
[1757319263798,0.64299877,111370.0,111360.0,0.02487]
[1757319265611,0.64299877,111370.0,111360.0,0.02787]
[1757319265998,0.64299877,111370.0,111360.0,0.02987]
[1757319266252,0.20654359,111380.0,111360.0,0.2094677]
[1757319266401,0.20654359,111380.0,111370.0,0.17958157]
[1757319266615,0.20654359,111380.0,111360.0,0.30138369]
[1757319266616,0.35606359,111380.0,111360.0,0.30138369]
[1757319267252,0.32908545,111380.0,111360.0,0.29838369]
[1757319267464,0.17956545,111380.0,111370.0,0.17958157]
[1757319267714,0.32908545,111380.0,111370.0,0.18158157]
[1757319267943,0.32908545,111380.0,111370.0,0.17958157]
[1757319268624,0.32908545,111380.0,111360.0,0.29938369]
[1757319268833,0.32908545,111380.0,111360.0,0.29738369]
[1757319269019,0.32908545,111380.0,111370.0,0.002]
[1757319269361,0.32908545,111380.0,111370.0,0.003]
[1757319275643,0.17956545,111380.0,111370.0,0.003]
[1757319275783,0.32908545,111380.0,111370.0,0.003]
[1757319282911,0.64293085,111380.0,111370.0,0.003]
[1757319289463,0.64293085,111380.0,111370.0,0.003]
[1757319306545,0.95668273,111380.0,111370.0,0.003]
[1757319311209,0.64288409,111380.0,111370.0,0.003]
[1757319311878,0.64336122,111380.0,111370.0,0.003]
[1757319322447,0.64332122,111380.0,111370.0,0.003]
[1757319326893,0.96241986,111380.0,111370.0,0.003]
[1757319328655,0.96029986,111380.0,111370.0,0.003]
[1757319329320,0.96241986,111380.0,111370.0,0.003]
[1757319330599,0.96029986,111380.0,111370.0,0.003]
[1757319331388,0.96241986,111380.0,111370.0,0.003]
[1757319331793,0.96029986,111380.0,111370.0,0.003]
[1757319332615,0.95711986,111380.0,111370.0,0.003]
[1757319333447,0.96029986,111380.0,111370.0,0.003]
[1757319340778,0.98727582,111380.0,111370.0,0.003]
[1757319342821,0.83779582,111380.0,111370.0,0.003]
[1757319343023,0.98405582,111380.0,111370.0,0.003]
[1757319343429,0.98723582,111380.0,111370.0,0.003]
[1757319345943,0.98935582,111380.0,111370.0,0.003]
[1757319346554,0.98723582,111380.0,111370.0,0.003]
[1757319348336,0.98935582,111380.0,111370.0,0.003]
[1757319360819,0.83991582,111380.0,111370.0,0.003]
[1757319361058,0.98931582,111380.0,111370.0,0.003]
[1757319362086,0.67551718,111380.0,111370.0,0.003]
[1757319362856,0.67339718,111380.0,111370.0,0.003]
[1757319363060,0.67554718,111380.0,111370.0,0.003]
[1757319366511,0.67553529,111380.0,111370.0,0.003]
[1757319371408,0.52613529,111380.0,111370.0,0.003]
[1757319371675,0.67553529,111380.0,111370.0,0.003]
[1757319375691,0.36174854,111380.0,111370.0,0.003]
[1757319377901,0.67553529,111380.0,111370.0,0.003]
[1757319378451,0.21234854,111380.0,111370.0,0.003]
[1757319378651,0.36174854,111380.0,111370.0,0.003]
[1757319379839,0.36170854,111380.0,111370.0,0.003]
[1757319384970,0.67549529,111380.0,111370.0,0.003]
[1757319386584,0.36170854,111380.0,111370.0,0.003]
[1757319396618,0.67549529,111380.0,111370.0,0.003]
[1757319405583,0.36170854,111380.0,111370.0,0.003]
[1757319410844,0.67549529,111380.0,111370.0,0.003]
[1757319428428,0.67548866,111380.0,111370.0,0.003]
[1757319428668,0.36170854,111380.0,111370.0,0.003]
[1757319428895,0.67548866,111380.0,111370.0,0.003]
[1757319435058,0.36170854,111380.0,111370.0,0.003]
[1757319435283,0.67548866,111380.0,111370.0,0.003]
[1757319445274,0.98926878,111380.0,111370.0,0.003]
[1757319447444,0.98926878,111380.0,111370.0,0.002]
[1757319447900,0.1795977,111360.0,111350.0,0.2156932]
[1757319448098,0.3288777,111360.0,111350.0,0.30760919]
[1757319448308,0.3318677,111360.0,111350.0,0.30760919]
[1757319448936,0.3318677,111360.0,111350.0,0.62138931]
[1757319449493,0.3318677,111360.0,111350.0,0.62338931]
[1757319450181,0.3318677,111360.0,111350.0,0.62738931]
[1757319450371,0.1825877,111360.0,111350.0,0.62738931]
[1757319455160,0.1795977,111360.0,111350.0,0.62738931]
[1757319459522,0.1846077,111360.0,111350.0,0.36199402]
[1757319459697,0.1846077,111360.0,111350.0,0.33501712]
[1757319459880,0.21158569,111360.0,111350.0,0.15540329]
[1757319466353,0.20956569,111360.0,111350.0,0.33501712]
[1757319466570,0.20956569,111360.0,111350.0,0.64879724]
[1757319467078,0.20956569,111360.0,111350.0,0.33501712]
[1757319467311,0.20956569,111360.0,111350.0,0.64879724]
[1757319467702,0.21004282,111360.0,111350.0,0.64879724]
[1757319471084,0.21200282,111360.0,111350.0,0.15540329]
[1757319472262,0.21004282,111360.0,111350.0,0.33501712]
[1757319472670,0.21004282,111360.0,111350.0,0.64879724]
[1757319473932,0.21004282,111360.0,111350.0,0.33501712]
[1757319474175,0.21004282,111360.0,111350.0,0.64879724]
[1757319481067,0.20705282,111360.0,111350.0,0.64879724]
[1757319481827,0.21002282,111360.0,111350.0,0.64879724]
[1757319482274,0.21002282,111360.0,111350.0,0.15540329]
[1757319482429,0.21198282,111360.0,111350.0,0.46918341]
[1757319483682,0.21198282,111360.0,111350.0,0.15540329]
[1757319483895,0.21198282,111360.0,111350.0,0.46918341]
[1757319484864,0.21198282,111360.0,111350.0,0.15540329]
[1757319490917,0.21198282,111360.0,111350.0,0.33501712]
[1757319490918,0.20705282,111360.0,111350.0,0.33501712]
[1757319491131,0.02745512,111360.0,111350.0,0.33501712]
[1757319491339,0.02745512,111360.0,111350.0,0.64885381]
[1757319491547,0.20705282,111360.0,111350.0,0.64885381]
[1757319491974,0.02745512,111360.0,111350.0,0.64885381]
[1757319492598,0.20705282,111360.0,111350.0,0.64885381]
[1757319493840,0.02745512,111360.0,111350.0,0.64885381]
[1757319494847,0.02745512,111360.0,111350.0,1.05460649]
[1757319495096,0.18324377,111390.0,111380.0,0.17956545]
[1757319495097,0.00071045,111390.0,111380.0,0.17956545]
[1757319495286,0.00071045,111390.0,111380.0,0.64264214]
[1757319495438,0.02768318,111390.0,111380.0,0.64264214]
[1757319495639,0.00071045,111390.0,111380.0,0.64264214]
[1757319496281,0.00071045,111390.0,111380.0,0.6706124]
[1757319496861,0.00071045,111390.0,111380.0,0.6726124]
[1757319497063,0.00071045,111390.0,111380.0,0.76452839]
[1757319498660,0.00071045,111390.0,111380.0,1.16352839]
[1757319498893,0.00071045,111390.0,111380.0,1.16452839]
[1757319499241,0.00071045,111390.0,111380.0,1.16252839]
[1757319499399,0.00071045,111390.0,111380.0,1.16152839]
[1757319499604,0.00071045,111390.0,111380.0,1.16252839]
[1757319499808,0.00071045,111390.0,111380.0,1.16352839]